Workbook

Sheet Volumes
A1: Test | B1: April | C1: May | D1: June | E1: July | F1: Average
A2: LFT | B2: =987+25% -> 987 | C2: 1,030 | D2: 1,045 | E2: 935 | F2: =AVERAGE(B2:E2) -> 999
A3: U+E | B3: 1,437 | C3: 1,253 | D3: 1,226 | E3: 1,126 | F3: =AVERAGE(B3:E3) -> 1,261
A4: U+E
A5: Sodium | B5: 1075 | C5: 1305 | D5: 1484 | E5: 1416 | F5: =AVERAGE(B5:E5) -> 1,320
A6: Creatinine (plus eGFR) | B6: 2988 | C6: 3697 | D6: 3436 | E6: 3524 | F6: =AVERAGE(B6:E6) -> 3,411
A7: Potassium | B7: 1050 | C7: 1265 | D7: 1513 | E7: 1347 | F7: =AVERAGE(B7:E7) -> 1,294
A8: Chloride | B8: 1073 | C8: 1299 | D8: 1482 | E8: 1409 | F8: =AVERAGE(B8:E8) -> 1,316
A9: Bicarbonate | B9: 1138 | C9: 1315 | D9: 1480 | E9: 1499 | F9: =AVERAGE(B9:E9) -> 1,358
A10: Urea | B10: 1158 | C10: 1334 | D10: 1510 | E10: 1512 | F10: =AVERAGE(B10:E10) -> 1,379
A11: HBA1c | B11: 2988 | C11: 3697 | D11: 3436 | E11: 3524 | F11: =AVERAGE(B11:E11) -> 3,411
A12: LFT
A13: Total protein | B13: 407 | C13: 678 | D13: 499 | E13: 476 | F13: =AVERAGE(B13:E13) -> 515
A14: Albumin | B14: 525 | C14: 645 | D14: 653 | E14: 628 | F14: =AVERAGE(B14:E14) -> 613
A15: Total bilirubin | B15: 557 | C15: 460 | D15: 727 | E15: 652 | F15: =AVERAGE(B15:E15) -> 599
A16: Conjugated bilirubin | B16: 537 | C16: 665 | D16: 716 | E16: 642 | F16: =AVERAGE(B16:E16) -> 640
A17: Alanine transaminase (ALT) | B17: 501 | C17: 595 | D17: 642 | E17: 610 | F17: =AVERAGE(B17:E17) -> 587
A18: Aspartate transaminase (AST) | B18: 476 | C18: 559 | D18: 594 | E18: 558 | F18: =AVERAGE(B18:E18) -> 547
A19: Alkaline phosphatase (ALP) | B19: 430 | C19: 513 | D19: 554 | E19: 520 | F19: =AVERAGE(B19:E19) -> 504
A20: Gamma-glutamyl transferase (GGT) | B20: 408 | C20: 493 | D20: 523 | E20: 504 | F20: =AVERAGE(B20:E20) -> 482
A23: C068,Creatine kinase (CK) | B23: 34 | C23: 43 | D23: 41 | E23: 40 | F23: =AVERAGE(B23:E23) -> 40
A24: C069,Creatine kinase MB (CK-MB) | B24: 29 | C24: 49 | D24: 45 | E24: 44 | F24: =AVERAGE(B24:E24) -> 42
A25: C093,C-reactive protein | B25: 642 | C25: 750 | D25: 917 | E25: 902 | F25: =AVERAGE(B25:E25) -> 803
A27: Other
A28: Glucose (random) | B28: 10 | C28: 22 | D28: 20 | E28: 18 | F28: =AVERAGE(B28:E28) -> 18
A29: Calcium | B29: 255 | C29: 340 | D29: 308 | E29: 314 | F29: =AVERAGE(B29:E29) -> 304
A30: Magnesium | B30: 19 | C30: 212 | D30: 302 | E30: 313 | F30: =AVERAGE(B30:E30) -> 212
A31: Inorganic phosphate | B31: 250 | C31: 339 | D31: 305 | E31: 316 | F31: =AVERAGE(B31:E31) -> 303
A32: Uric acid | B32: 65 | C32: 90 | D32: 70 | E32: 51 | F32: =AVERAGE(B32:E32) -> 69
